Workbook

Sheet รายงานค่าใช้จ่าย
A1: ชื่อบริษัท
A2: รายงานค่าใช้จ่าย
B4: พนักงาน: | C4: อัญชนา ภานุวัฒนวงศ์ | G4: อนุญาตโดย:
B5: แผนก | C5: ขาย
B6: สิ้นสุดสัปดาห์วันที่: | C6: 2013-03-07 | G6: วันที่:
B7: อัตราค่าใช้จ่ายต่อไมล์: | C7: ฿0.67
C9: =UPPER(TEXT(C10,"วววว")) -> ศุกร์ | D9: =UPPER(TEXT(D10,"วววว")) -> เสาร์ | E9: อาทิตย์ | F9: จันทร์ | G9: อังคาร | H9: พุธ | I9: พฤหัสบดี
B10: การเดินทาง | C10: =สิ้นสุดสัปดาห์-6 -> 2013-03-01 | D10: =สิ้นสุดสัปดาห์-5 -> 2013-03-02 | E10: =สิ้นสุดสัปดาห์-4 -> 2013-03-03 | F10: =สิ้นสุดสัปดาห์-3 -> 2013-03-04 | G10: =สิ้นสุดสัปดาห์-2 -> 2013-03-05 | H10: =สิ้นสุดสัปดาห์-1 -> 2013-03-06 | I10: =สิ้นสุดสัปดาห์ -> 2013-03-07 | J10: ผลรวม
B11: จำนวนไมล์ที่ขับ | C11: 145 | J11: =SUM(การเดินทาง[[#This Row],[Day 1]:[Day 7]]) -> 145
B12: การเบิกเงินตามระยะทาง | C12: =C11*อัตราไมล์ -> ฿97.15 | D12: ฿0.00 | E12: ฿0.00 | F12: ฿0.00 | G12: ฿0.00 | H12: ฿0.00 | I12: ฿0.00 | J12: =SUM(การเดินทาง[[#This Row],[Day 1]:[Day 7]]) -> ฿97.15
B13: ค่าที่จอดรถและค่าผ่านทาง | F13: ฿17.00 | J13: =SUM(การเดินทาง[[#This Row],[Day 1]:[Day 7]]) -> ฿17.00
B14: ค่าเช่ารถ | C14: ฿79.00 | F14: ฿79.00 | J14: =SUM(การเดินทาง[[#This Row],[Day 1]:[Day 7]]) -> ฿158.00
B15: แท็กซี่ / รถลีมูซีน | J15: =SUM(การเดินทาง[[#This Row],[Day 1]:[Day 7]]) -> ฿0.00
B16: อื่นๆ (รถไฟหรือรถโดยสารประจำทาง) | J16: =SUM(การเดินทาง[[#This Row],[Day 1]:[Day 7]]) -> ฿0.00
B17: ตั๋วเครื่องบิน | F17: ฿235.00 | J17: =SUM(การเดินทาง[[#This Row],[Day 1]:[Day 7]]) -> ฿235.00
B18: ผลรวม | C18: =SUBTOTAL(109,C12:C17) -> ฿176.15 | D18: =SUBTOTAL(109,D12:D17) -> ฿0.00 | F18: =SUBTOTAL(109,F12:F17) -> ฿331.00 | G18: =SUBTOTAL(109,G12:G17) -> ฿0.00 | H18: =SUBTOTAL(109,H12:H17) -> ฿0.00 | I18: =SUBTOTAL(109,I12:I17) -> ฿0.00 | J18: =SUM(J12:J17) -> ฿507.15
B20: ที่พักและอาหาร
B21: ที่พัก | C21: ฿145.00 | J21: =SUM(ค่าที่พักและอาหาร[[#This Row],[Day 1]:[Day 7]]) -> ฿145.00
B22: อาหารเช้า | C22: ฿11.49 | J22: =SUM(ค่าที่พักและอาหาร[[#This Row],[Day 1]:[Day 7]]) -> ฿11.49
B23: อาหารกลางวัน | C23: ฿12.00 | J23: =SUM(ค่าที่พักและอาหาร[[#This Row],[Day 1]:[Day 7]]) -> ฿12.00
B24: อาหารค่ำ | C24: ฿17.00 | J24: =SUM(ค่าที่พักและอาหาร[[#This Row],[Day 1]:[Day 7]]) -> ฿17.00
B25: อาหารว่าง | C25: =C24*อัตราไมล์ -> ฿11.39 | J25: =SUM(ค่าที่พักและอาหาร[[#This Row],[Day 1]:[Day 7]]) -> ฿11.39
B26: ยอดรวมมื้ออาหาร | C26: =SUM(C22:C24) -> ฿40.49 | D26: =SUM(D22:D24) -> ฿0.00 | E26: ฿0.00 | F26: ฿0.00 | G26: ฿0.00 | H26: ฿0.00 | I26: ฿0.00 | J26: =SUM(ค่าที่พักและอาหาร[[#This Row],[Day 1]:[Day 7]]) -> ฿40.49
B27: ผลรวม | C27: =SUBTOTAL(109,C21,C26) -> ฿185.49 | D27: =SUBTOTAL(109,D21,D26) -> ฿0.00 | E27: ฿0.00 | F27: ฿0.00 | G27: ฿0.00 | H27: ฿0.00 | I27: ฿0.00 | J27: =SUBTOTAL(109,J21,J26) -> ฿185.49
B29: เบ็ดเตล็ด
B30: ของใช้สิ้นเปลือง | J30: =SUM(เบ็ดเตล็ด[[#This Row],[Day 1]:[Day 7]]) -> ฿0.00
B31: อุปกรณ์ | J31: =SUM(เบ็ดเตล็ด[[#This Row],[Day 1]:[Day 7]]) -> ฿0.00
B32: โทรศัพท์, โทรสาร, อินเทอร์เน็ต | J32: =SUM(เบ็ดเตล็ด[[#This Row],[Day 1]:[Day 7]]) -> ฿0.00
B33: อื่นๆ* | J33: =SUM(เบ็ดเตล็ด[[#This Row],[Day 1]:[Day 7]]) -> ฿0.00
B34: เลี้ยงรับรองลูกค้า* | F34: ฿199.00 | J34: =SUM(เบ็ดเตล็ด[[#This Row],[Day 1]:[Day 7]]) -> ฿199.00
B35: ผลรวม | C35: =SUBTOTAL(109,เบ็ดเตล็ด[Day 1]) -> ฿0.00 | D35: =SUBTOTAL(109,เบ็ดเตล็ด[Day 2]) -> ฿0.00 | E35: =SUBTOTAL(109,เบ็ดเตล็ด[Day 3]) -> ฿0.00 | F35: =SUBTOTAL(109,เบ็ดเตล็ด[Day 4]) -> ฿199.00 | G35: =SUBTOTAL(109,เบ็ดเตล็ด[Day 5]) -> ฿0.00 | H35: =SUBTOTAL(109,เบ็ดเตล็ด[Day 6]) -> ฿0.00 | I35: =SUBTOTAL(109,เบ็ดเตล็ด[Day 7]) -> ฿0.00 | J35: =SUBTOTAL(109,เบ็ดเตล็ด[Total]) -> ฿199.00
B37: ผลรวมทั้งหมด | C37: =SUM(เบ็ดเตล็ด[[#Totals],[Day 1]],ค่าที่พักและอาหาร[[#Totals],[Day 1]],การเดินทาง[[#Totals],[Day 1]]) -> ฿361.64 | D37: =SUM(เบ็ดเตล็ด[[#Totals],[Day 2]],ค่าที่พักและอาหาร[[#Totals],[Day 2]],การเดินทาง[[#Totals],[Day 2]]) -> ฿0.00 | E37: =SUM(เบ็ดเตล็ด[[#Totals],[Day 3]],ค่าที่พักและอาหาร[[#Totals],[Day 3]],การเดินทาง[[#Totals],[Day 3]]) -> ฿0.00 | F37: =SUM(เบ็ดเตล็ด[[#Totals],[Day 4]],ค่าที่พักและอาหาร[[#Totals],[Day 4]],การเดินทาง[[#Totals],[Day 4]]) -> ฿530.00 | G37: =SUM(เบ็ดเตล็ด[[#Totals],[Day 5]],ค่าที่พักและอาหาร[[#Totals],[Day 5]],การเดินทาง[[#Totals],[Day 5]]) -> ฿0.00 | H37: =SUM(เบ็ดเตล็ด[[#Totals],[Day 6]],ค่าที่พักและอาหาร[[#Totals],[Day 6]],การเดินทาง[[#Totals],[Day 6]]) -> ฿0.00 | I37: =SUM(เบ็ดเตล็ด[[#Totals],[Day 7]],ค่าที่พักและอาหาร[[#Totals],[Day 7]],การเดินทาง[[#Totals],[Day 7]]) -> ฿0.00 | J37: =SUM(เบ็ดเตล็ด[[#Totals],[Total]],ค่าที่พักและอาหาร[[#Totals],[Total]],การเดินทาง[[#Totals],[Total]]) -> ฿891.64
J39: ค่าใช้จ่ายทั้งหมด
B40: *จุดประสงค์ทางธุรกิจสำหรับรายการ "เลี้ยงรับรองลูกค้า" และ "อื่นๆ": | J40: =SUM(J18,J27,J35) -> ฿891.64
J41: จ่ายล่วงหน้า
J43: จำนวนขอเบิกค่าใช้จ่ายทั้งหมด
J44: =J40-J42 -> ฿891.64
J45: โปรดแนบใบเสร็จรับเงินทั้งหมด
